Workbook

Sheet Rozpočet 2016
A1: Rozpočet na rok 2017
A2: obec Horní Olešnice
A3: Příjmy
A4: SU | B4: PAR | C4: Text
A5: 231 | C5: Daně | D5: 3719740
A6: 231 | C6: Poplatek za provoz, shrom, a odst. KO | D6: 190000
A7: 231 | C7: Poplatky správní a místní | D7: 33125
A8: 231 | C8: Daň z nemovitých věcí | D8: 423330
A9: 231 | C9: Ost. neinv. přij. transfery ze SR | D9: 70000
A10: 231 | C10: Neinv. př. transfery ze SR - výkon strátní správy | D10: 58200
A11: 231 | B11: 2119 | C11: Ost. záležitosti těž. průmyslu | D11: 200
A12: 231 | B12: 2310 | C12: Pitná voda | D12: 20000
A13: 231 | B13: 2321 | C13: Odvádění a čištění od. vod | D13: 25000
A14: 231 | B14: 3399 | C14: Kultura | D14: 4100
A15: 231 | B15: 3412 | C15: Sportovní zařízení | D15: 1000
A16: 231 | B16: 3612 | C16: Bytové hospodářství | D16: 401200
A17: 231 | B17: 3613 | C17: Nebytové hospod. | D17: 72200
A18: 231 | B18: 3634 | C18: Lokální zásobování teplem | D18: 14300
A19: 231 | B19: 3639 | C19: Komunální služby | D19: 4257
A20: 231 | B20: 3722 | C20: Sběr a svoz KO | D20: 11760
A21: 231 | B21: 3725 | C21: Využívání a znešk. KO | D21: 50000
A22: 231 | B22: 3745 | C22: Veřejná zeleň | D22: 200
A23: 231 | B23: 6171 | C23: Činnost místní správy | D23: 500
A24: 231 | B24: 6310 | C24: Příjmy a výdaje z fin. Operací | D24: 1100
C25: Příjmy celkem | D25: =SUM(D5:D24) -> 5100212
A26: 231 | B26: 8115 | C26: Změna stavu prostředků na bankovních účtech | D26: 3080766
C27: Celkem | D27: =SUM(D25+D26) -> 8180978
A29: Výdaje
A30: SU | B30: PAR | C30: Text
A31: 231 | B31: 1031 | C31: Pěstební činnost | D31: 10000
A32: 231 | B32: 1036 | C32: Lesní hospodářství | D32: 2000
A33: 231 | B33: 2212 | C33: Silnice | D33: 1090000
A34: 231 | B34: 2310 | C34: Pitná voda | D34: 307140
A35: 231 | B35: 2321 | C35: Odvádění a čištění odpad. Vod | D35: 295500
A36: 231 | B36: 3326 | C36: Obnova hodnot his. Povědomí | D36: 50000
A37: 231 | B37: 3399 | C37: Kultura | D37: 51000
A38: 231 | B38: 3412 | C38: Sportovní zařízení | D38: 10000
A39: 231 | B39: 3612 | C39: Bytové hospodářství | D39: 41600
A40: 231 | B40: 3613 | C40: Nebytové hospodářství | D40: 1062240
A41: 231 | B41: 3631 | C41: Veřejné osvětlení | D41: 48300
A42: 231 | B42: 3634 | C42: Lokální zásobování teplem | D42: 162120
A43: 231 | B43: 3635 | C43: Územní plánování | D43: 24200
A44: 231 | B44: 3639 | C44: Komunální služby | D44: 2734670
A45: 231 | B45: 3721 | C45: Sběr a svoz nebezp. Odpadů | D45: 10000
A46: 231 | B46: 3722 | C46: Sběr a svoz KO | D46: 320321
A47: 231 | B47: 3726 | C47: Využívání a zneš. ost. odpadů | D47: 0
A48: 231 | B48: 3745 | C48: Péče o vzhled obcí a veř. Zeleň | D48: 260000
A49: 231 | B49: 4378 | C49: Terénní programy | D49: 2000
A50: 231 | B50: 5511 | C50: Požární ochrana profes. Část | D50: 7200
A51: 231 | B51: 5512 | C51: Požární ochrana dobrovolná část | D51: 3000
A52: 231 | B52: 6112 | C52: Zastupitelstvo obce | D52: 847000
A53: 231 | B53: 6171 | C53: Činnost miístní správy | D53: 717685
A54: 231 | B54: 6310 | C54: Obecné příjmy a výdaje z fin. Operací | D54: 10000
A55: 231 | B55: 6320 | C55: Pojištění funkčně nespecif. | D55: 1500
A56: 231 | B56: 6399 | C56: DPPO | D56: 77710
A57: 231 | B57: 6402 | C57: Finanční vypořádání minulých let | D57: 14792
A58: 231 | B58: 6409 | C58: Ostatní činnosti j. n. | D58: 20000
A59: 231 | B59: 5212 | C59: Rezerva krizových situací | D59: 1000
C60: Výdaje celkem | D60: =SUM(D31:D59) -> 8180978
A63: Příloha č. 1 k návrhu rozpočtu na rok 2017
A64: Rozpis transferů
A65: DSO Podkrkonoší | D65: 9150
A66: Svazek obcí Horní Labe | D66: 2920
A67: SMO příspěvek | D67: 2744
A68: MAS Království - Jestřebí hory o.p.s. | D68: 2000
A69: Rozpis dotací, příspěvků a darů
A70: Neúčelový finanční dar SDH | D70: 3000
A71: Peněžní dar Vítání občánků | D71: 6000
A72: Neúčelový finanční dar Služby Dolní Kalná | E72: 2000
A73: Věcné dary, jubilea | D73: 20000
A75: Zastupitelstvo schvaluje dle svých kompetencí vyhrazených zákonem o obcích poskytnutí dotací,
A76: peněžních a věcných darů dle návrhu rozpočtu na rok 2017 v té výši a těm fyzickým a práv. osobám,
A77: uvedených v příloze č. 1, která je součástí návrhu rozpočtu na rok 2017.
A79: Návrh rozpočtu pro rok 2017 je schodkový, krytý z přebytků minulých let.
A80: Závazným ukazatelem jsou paragrafy rozpočtu.
A82: Plné znění rozpočtu je k nahlédnutí na webových stránkách obce a na obecním úřadě.

Sheet Návrh rozpočtu na rok 2020
A1: Návrh rozpočtu obce Kunčice nad Labem na rok 2021
A2: dle tříd v závazných ukazatelích (§)
A3: PŘÍJMY
A4: Třída 1 | C4: Daňové příjmy | G4: Schv.rozpočet | H4: Předpokl. plnění | I4: Skutečnost | J4: Návrh rozpočtu
A5: dle § | B5: pol. | G5: 2020 | H5: 2020 | I5: k 31.10.2020 | J5: 2021
B6: 1111 | C6: Daň z příjmů FO ze závislé činnosti | G6: 2100000 | H6: 2100000 | I6: 1483540.82 | J6: 1500000
B7: 1112 | C7: Daň z podnikání | G7: 40000 | H7: 40000 | I7: 14169.88 | J7: 12000
B8: 1113 | C8: Daň z příjmů FO vybíraná srážkou | G8: 160000 | H8: 160000 | I8: 147078.79 | J8: 130000
B9: 1121 | C9: Daň z příjmů právnických osob | G9: 1500000 | H9: 1500000 | I9: 1039329.05 | J9: 1200000
B10: 1122 | C10: Daň z příjmu právnických osob za obec | G10: 115140 | H10: 118180 | I10: 118180 | J10: 118180
B11: 1211 | C11: Daň z přidané hodnoty | G11: 3500000 | H11: 3500000 | I11: 2898257.16 | J11: 3500000
B12: 1334 | C12: Odvody za odnětí půdy ze ZPF | G12: 5000 | H12: 5000 | I12: 3969.84 | J12: 5000
B13: 1340 | C13: Poplatek za provoz. shrom. a odstr. KO | G13: 250000 | H13: 250000 | I13: 224196 | J13: 220000
B14: 1341 | C14: Poplatky ze psů | G14: 5120 | H14: 5120 | I14: 8440 | J14: 9000
B15: 1342 | C15: Poplatek z pobytu | G15: 1000 | H15: 3765 | I15: 2610 | J15: 2500
B16: 1349 | C16: Zrušené místní poplatky | G16: 0 | H16: 235 | I16: 235 | J16: 0
B17: 1361 | C17: Správní poplatky | G17: 3600 | H17: 3600 | I17: 4330 | J17: 5000
B18: 1381 | C18: Daň z hazardních her | G18: 40000 | H18: 40000 | I18: 36969.92 | J18: 40000
B19: 1511 | C19: Daň z nemovitých věcí | G19: 475000 | H19: 475000 | I19: 451592.81 | J19: 455000
A20: Třída 1 | C20: Celkem daňové příjmy | G20: =SUM(G6:G19) -> 8194860 | H20: =SUM(H6:H19) -> 8200900 | I20: =SUM(I6:I19) -> 6432899.27 | J20: =SUM(J6:J19) -> 7196680
A22: Třída 2 | C22: Nedaňové příjmy | G22: Schv.rozpočet | H22: Předpokl. plnění | I22: Skutečnost | J22: Návrh rozpočtu
A23: dle § | G23: 2020 | H23: 2020 | I23: k 31.10.2020 | J23: 2021
A24: 2122 | C24: Sběr železa | G24: 2000 | H24: 2000 | I24: 440 | J24: 2000
A25: 2143 | C25: Cestovní ruch | G25: 5000 | H25: 5000 | I25: 0 | J25: 5000
A26: 2144 | C26: Ostatní služby | G26: 1000 | H26: 1000 | I26: 800 | J26: 2000
A27: 2310 | C27: Pitná voda | G27: 300000 | H27: 300000 | I27: 245037 | J27: 360000
A28: 2412 | C28: Záležitosti telekomunikací | G28: 160300 | H28: 160300 | I28: 31160 | J28: 6000
A29: 3319 | C29: Ostatní záležitosti kultury | G29: 0 | H29: 8000 | I29: 8000 | J29: 10000
A30: 3326 | C30: Pořízení, zachování a obnova hodnot nár.hist.povědo | G30: 300 | H30: 300 | I30: 0 | J30: 300
A31: 3613 | C31: Nebytové hospodářství | G31: 37200 | H31: 37200 | I31: 16500 | J31: 40000
A32: 3631 | C32: Veřejné osvětlení | G32: 5000 | H32: 5000 | I32: 0 | J32: 2000
A33: 3632 | C33: Pohřebnictví | G33: 1000 | H33: 16469 | I33: 15469 | J33: 60000
A34: 3639 | C34: Komunální služby a územní rozvoj JN | G34: 8000 | H34: 80500 | I34: 72852 | J34: 12000
A35: 3722 | C35: Sběr a svoz komunálních odpadů | G35: 35000 | H35: 35000 | I35: 28190 | J35: 35000
A36: 3725 | C36: Využívání a zneškodňování komunálních odpadů | G36: 100000 | H36: 100000 | I36: 84025.5 | J36: 100000
A37: 5512 | C37: Požární ochrana | G37: 300 | H37: 300 | I37: 0 | J37: 300
A38: 6171 | C38: Činnost místní správy | G38: 13300 | H38: 13300 | I38: 1912 | J38: 13300
A39: 6310 | C39: Obecné přímy a výdaje z finan. Operací | G39: 7000 | H39: 7000 | I39: 2756.08 | J39: 4000
A40: Třída 2 | C40: Celkem nedaňové příjmy | G40: =SUM(G24:G39) -> 675400 | H40: =SUM(H24:H39) -> 771369 | I40: =SUM(I24:I39) -> 507141.58 | J40: =SUM(J24:J39) -> 651900
A42: Třída 3 | C42: Kapitálové příjmy | G42: Schv.rozpočet | H42: Předpokl. plnění | I42: Skutečnost | J42: Návrh rozpočtu
A43: dle § | G43: 2020 | H43: 2020 | I43: k 31.10.2020 | J43: 2021
A44: 3639 | C44: Komunální služby a územní rozvoj | G44: 1600000 | H44: 1590000 | I44: 559360 | J44: 1800000
A45: Třída 3 | C45: Celkem kapitálové příjmy | G45: 1600000 | H45: 1590000 | I45: 559360 | J45: 1800000
A47: Třída 4 | C47: Přijaté dotace | G47: Schv.rozpočet | H47: Předpokl. plnění | I47: Skutečnost | J47: Návrh rozpočtu
A48: dle § | B48: pol. | G48: 2020 | H48: 2020 | I48: k 31.10.2020 | J48: 2021
A49: 0 | B49: 4111 | C49: Neinvestiční přijaté transf. z všeobecný pokl. Zprávy SR | G49: 29000 | H49: 740750 | I49: 740750 | J49: 30000
B50: 4112 | C50: Neinv. Př. Transfery ze SR v rámci souhr.dot.vztahu | G50: 158300 | H50: 158300 | I50: 131916.7 | J50: 130000
A51: 0 | B51: 4113 | C51: Neinv.př. Transfery MŽP | J51: 1083979
B52: 4116 | C52: Ostatní neinv. Přijaté transfery ze st. Rozpočtu | H52: 482600 | I52: 482600
A53: 6330 | B53: 4134 | C53: Převody vlastním fondům v rozpočtech územní úrovně | G53: 100000 | H53: 100000 | I53: 0 | J53: 250000
A54: Třída 4 | C54: Celkem přijaté dotace | G54: =SUM(G49:G53) -> 287300 | H54: =SUM(H49:H53) -> 1481650 | I54: =SUM(I49:I53) -> 1355266.7 | J54: =SUM(J49:J53) -> 1493979
A57: CELKEM PŘÍJMY | G57: =SUM(G20,G40,G45,G54) -> 10757560 | H57: =SUM(H20,H40,H45,H54) -> 12043919 | I57: =SUM(I20,I40,I45,I54) -> 8854667.55 | J57: =SUM(J20,J40,J45,J54) -> 11142559
A59: VÝDAJE
A60: Třída 5 | C60: Běžné výdaje | G60: Schv.rozpočet | H60: Předpokl. plnění | I60: Skutečnost | J60: Návrh rozpočtu
A61: dle § | G61: 2020 | H61: 2020 | I61: k 31.10.2020 | J61: 2021
A62: 2141 | C62: Vnitřní obchod | G62: 35730 | H62: 35730 | I62: 25488 | J62: 35730
A63: 2143 | C63: Cestovní ruch | G63: 11200 | H63: 11200 | I63: 0 | J63: 11000
A64: 2212 | C64: Silnice | G64: 619500 | H64: 619500 | I64: 20354 | J64: 919500
A65: 2219 | C65: Ostatní záležitosti pozemních komunikací | G65: 87147 | H65: 262147 | I65: 131491.49 | J65: 88000
A66: 2221 | C66: Provoz veřejné silniční dopravy | G66: 60000 | H66: 60000 | I66: 0 | J66: 60000
A67: 2249 | C67: Ostatní záležitosti železniční dopravy | G67: 3000 | H67: 3000 | I67: 3000 | J67: 3000
A68: 2310 | C68: Pitná voda | G68: 546000 | H68: 546000 | I68: 362702 | J68: 546000
A69: 2321 | C69: Odvádění a čistění odopadních vod | G69: 64202 | H69: 64202 | I69: 62676 | J69: 70000
A70: 2333 | C70: Úpravy drobných vodních toků | G70: 20000 | H70: 20000 | I70: 0 | J70: 20000
A71: 2412 | C71: Záležitostí telekomunikací | G71: 222800 | H71: 222800 | I71: 86436 | J71: 29400
A72: 3119 | C72: Ostatní záležitosti základního vzdělání | G72: 806000 | H72: 1292600 | I72: 1175833.3 | J72: 810000
A73: 3319 | C73: Ostatní záležitosti kultury | G73: 30000 | H73: 40000 | I73: 21370.79 | J73: 50000
A74: 3326 | C74: Pořízení, zachování a obnova hodnot nár.hist.povědomí | G74: 104000 | H74: 104000 | I74: 2052 | J74: 104000
A75: 3399 | C75: Ostatní záležitosti kultury | G75: 18000 | H75: 28000 | I75: 14960 | J75: 26000
A76: 3419 | C76: Ostatní sportovní činnost | G76: 50000 | H76: 50000 | I76: 50000 | J76: 50000
A77: 3631 | C77: Veřejné osvětlení | G77: 103018 | H77: 103018 | I77: 58331 | J77: 105000
A78: 3632 | C78: Pohřebnictví | G78: 31000 | H78: 31000 | I78: 1484 | J78: 31000
A79: 3639 | C79: Komunální služby a územní rozvoj | G79: 63000 | H79: 66600 | I79: 77462 | J79: 263600
A80: 3721 | C80: Sběr a svoz nebezpečných odpadů | G80: 20000 | H80: 20000 | I80: 10000 | J80: 20000
A81: 3722 | C81: Sběr a svoz komunálních odpadů | G81: 580000 | H81: 630000 | I81: 392076.21 | J81: 520000
A82: 3723 | C82: Sběr a svoz ost. Odpadů (jiných než nebez a komun.) | G82: 400000 | H82: 450000 | I82: 132481.02 | J82: 1563979
A83: 3739 | C83: Ostatní ochrana půdy a spod. Vody | G83: 50000 | H83: 50000 | I83: 34320 | J83: 40000
A84: 3745 | C84: Péče o vzhled obcí a veřejnou zeleň | G84: 173000 | H84: 240650 | I84: 82921.29 | J84: 125000
A85: 4359 | C85: Ostatní služby v oblasti soc. péče | G85: 20000 | H85: 20000 | I85: 8000 | J85: 20000
A86: 4379 | C86: Ostatní služby v oblasti soc. prevence | G86: 30000 | H86: 30000 | I86: 20000 | J86: 20000
A87: 5213 | C87: Krizová opatření | G87: 10000 | H87: 10000 | I87: 8497 | J87: 10000
A88: 5512 | C88: Požární ochrana | G88: 170500 | H88: 178500 | I88: 58261 | J88: 171000
A89: 6112 | C89: Zastupitelstvo obce | G89: 1057911 | H89: 1247911 | I89: 856021 | J89: 1240000
A90: 6115 | C90: Volby do zastupitelstev USC | G90: 29000 | H90: 47000 | I90: 19012.39 | J90: 0
A91: 6114 | C91: Volby do Parlamentu ČR | G91: 0 | H91: 0 | I91: 0 | J91: 0
A92: 6171 | C92: Činnost místní správy | G92: 2069854 | H92: 2283854 | I92: 1548146.67 | J92: 2233000
A93: 6310 | C93: Obecné výdaje z finančních operací | G93: 16000 | H93: 16000 | I93: 10513.2 | J93: 16000
A94: 6320 | C94: Pojištění funkčně nespecifikované | G94: 30000 | H94: 30000 | I94: 26763 | J94: 30000
A95: 6330 | C95: Převody vlastním fondům | G95: 100000 | H95: 100000 | I95: 0 | J95: 250000
A96: 6399 | C96: Ostatní finanční operace | G96: 160000 | H96: 118180 | I96: 118180 | J96: 130000
A97: 6402 | C97: Finanční vypořádání minulých let | G97: 5000 | H97: 5000 | I97: 4718.6 | J97: 150000
A98: 6409 | C98: Ostatní činnosti jinde nezařazené | G98: 1 | H98: 1 | I98: 0 | J98: 1
A99: Třída 5 | C99: Celkem běžné výdaje | G99: =SUM(G62:G98) -> 7795863 | H99: =SUM(H62:H98) -> 9036893 | I99: =SUM(I62:I98) -> 5423551.96 | J99: =SUM(J62:J98) -> 9761210
A101: Třída 6 | C101: Kapitálové výdaje | G101: Schv.rozpočet | H101: Předpokl. plnění | I101: Skutečnost | J101: Návrh rozpočtu
A102: dle § | G102: 2020 | H102: 2020 | I102: k 31.10.2020 | J102: 2021
A103: 2219 | C103: Ostatní záležitosti pozemních komunikací | G103: 0 | H103: 50000 | I103: 11654.92 | J103: 20000
A104: 2221 | C104: Provoz veřejné silniční doopravy | G104: 60000 | H104: 60000 | I104: 47602.21 | J104: 60000
A105: 2310 | C105: Pitná voda | G105: 20000 | H105: 20000 | I105: 0 | J105: 40000
A106: 2321 | C106: Odvádění a čištění odpadních vod a nákl. s kaly | G106: 600000 | H106: 600000 | I106: 321345 | J106: 300000
A107: 3631 | C107: Veřejné osvětlení | G107: 750000 | H107: 750000 | I107: 0 | J107: 161349
A108: 3639 | C108: Komunální služby a územní rozvoj JN | G108: 1500000 | H108: 1500000 | I108: 446300 | J108: 800000
A109: Třída 6 | C109: Celkem kapitálové výdaje | G109: =SUM(G103:G108) -> 2930000 | H109: =SUM(H103:H108) -> 2980000 | I109: =SUM(I103:I108) -> 826902.13 | J109: =SUM(J103:J108) -> 1381349
A111: CELKEM VÝDAJE | G111: =SUM(G99,G109) -> 10725863 | H111: =SUM(H99,H109) -> 12016893 | I111: =SUM(I99,I109) -> 6250454.09 | J111: =SUM(J99,J109) -> 11142559
A114: FINANCOVÁNÍ
A115: Třída 8 | C115: Financování | G115: Schv.rozpočet | H115: Předpokl. plnění | I115: Skutečnost | J115: Návrh rozpočtu
A116: dle § | B116: pol. | G116: 2020 | H116: 2020 | I116: k 31.10.2020 | J116: 2020
B117: 8115 | C117: Změna stavu na ban. účtech | G117: 0 | H117: 2500000 | I117: 2604213.46 | J117: 0
A118: Třída 8 | C118: Celkem financování | G118: =SUM(G117:G117) -> 0 | H118: =SUM(H117:H117) -> 2500000 | I118: =SUM(I117:I117) -> 2604213.46 | J118: =SUM(J117:J117) -> 0

Sheet Příloha č. 1
A1: Příloha č. 1 k návrhu rozpočtu na rok 2020
A2: Rozpis transferů
A3: Krkonoše - Svazek měst a obcí | D3: 3400
A4: Svazek obcí Horní Labe | D4: 10000
A6: CELKEM | E6: 13400
A8: Rozpis příspěvků a finančních darů
A9: Neinvestiční příspěvek PO MŠ Prosečné | E9: 173400
A10: Finanční dar Klub důchodců Lánov | E10: 30000
A11: Finanční dar Diabetici Vrchlabí | E11: 10000
A12: Finanční dar Oblastní charita Červený Kostelec | E12: 10000
A13: Finanční dar Farní charita Dvůr Králové nad Labem | E13: 2000
A14: Finanční dar TJ Sokol Prosečné | E14: 20000
A15: CELKEM | D15: 245400
